[Event "Titled Tuesday Blitz May 23 Early 2023"]
[White "Toncheva, Nadya"]
[Black "FREDERICKtheMATE"]
[WhiteFideId "2924056"]
[WhiteElo "2101"]
[BlackElo "2352"]
[Result "0-1"]
[Round "03"]
[TimeControl "180+2"]
[Date "2023.05.23"]
[WhiteClock "0:00:00"]
[BlackClock "0:00:03"]

1. e4 {[%clk 0:03:00]}  c5 {[%clk 0:03:00]} 2. c3 {[%clk 0:03:00]}  d5 {[%clk 0:02:59]} 3. exd5 {[%clk 0:03:00]}  Qxd5 {[%clk 0:02:59]} 4. Nf3 {[%clk 0:03:00]}  g6 {[%clk 0:02:58]} 5. d4 {[%clk 0:03:01]}  Bg7 {[%clk 0:02:57]} 6. Be3 {[%clk 0:02:57]}  cxd4 {[%clk 0:02:55]} 7. Bxd4 {[%clk 0:02:55]}  Nf6 {[%clk 0:02:55]} 8. Nbd2 {[%clk 0:02:53]}  O-O {[%clk 0:02:54]} 9. Bc4 {[%clk 0:02:52]}  Qd8 {[%clk 0:02:51]} 10. O-O {[%clk 0:02:52]}  Nbd7 {[%clk 0:02:51]} 11. Nb3 {[%clk 0:02:49]}  Qc7 {[%clk 0:02:50]} 12. Qe2 {[%clk 0:02:47]}  Re8 {[%clk 0:02:48]} 13. Rad1 {[%clk 0:02:45]}  a6 {[%clk 0:02:43]} 14. a4 {[%clk 0:02:45]}  e5 {[%clk 0:02:37]} 15. Be3 {[%clk 0:02:40]}  h6 {[%clk 0:02:37]} 16. Nfd2 {[%clk 0:02:25]}  b6 {[%clk 0:02:33]} 17. a5 {[%clk 0:02:10]}  b5 {[%clk 0:02:30]} 18. Bd3 {[%clk 0:02:10]}  Bb7 {[%clk 0:02:28]} 19. Rfe1 {[%clk 0:02:03]}  Rac8 {[%clk 0:02:21]} 20. f3 {[%clk 0:02:00]}  Nd5 {[%clk 0:02:19]} 21. Ne4 {[%clk 0:01:51]}  f5 {[%clk 0:02:15]} 22. Nf2 {[%clk 0:01:37]}  N7f6 {[%clk 0:02:02]} 23. Bc1 {[%clk 0:01:36]}  h5 {[%clk 0:01:53]} 24. Bc2 {[%clk 0:01:27]}  Bf8 {[%clk 0:01:43]} 25. Kh1 {[%clk 0:01:17]}  Qc4 {[%clk 0:01:39]} 26. Nh3 {[%clk 0:01:06]}  Kg7 {[%clk 0:01:30]} 27. Qd2 {[%clk 0:01:02]}  f4 {[%clk 0:01:18]} 28. Ng5 {[%clk 0:00:57]}  Ne3 {[%clk 0:01:14]} 29. Qf2 {[%clk 0:00:38]}  Nxd1 {[%clk 0:01:11]} 30. Rxd1 {[%clk 0:00:38]}  Rcd8 {[%clk 0:01:08]} 31. Re1 {[%clk 0:00:38]}  Rd7 {[%clk 0:01:01]} 32. Qb6 {[%clk 0:00:35]}  Qc6 {[%clk 0:00:55]} 33. Qf2 {[%clk 0:00:31]}  Kh6 {[%clk 0:00:45]} 34. h4 {[%clk 0:00:31]}  Qc7 {[%clk 0:00:31]} 35. Bb1 {[%clk 0:00:26]}  Bd5 {[%clk 0:00:28]} 36. Nd2 {[%clk 0:00:25]}  Bc5 {[%clk 0:00:24]} 37. Qf1 {[%clk 0:00:24]}  Be3 {[%clk 0:00:19]} 38. Nde4 {[%clk 0:00:20]}  Nxe4 {[%clk 0:00:17]} 39. Nxe4 {[%clk 0:00:19]}  Bc4 {[%clk 0:00:17]} 40. Bxe3 {[%clk 0:00:08]}  Bxf1 {[%clk 0:00:16]} 41. Bb6 {[%clk 0:00:08]}  Qc4 {[%clk 0:00:14]} 42. b3 {[%clk 0:00:07]}  Qxb3 {[%clk 0:00:11]} 43. Rxf1 {[%clk 0:00:08]}  Rd1 {[%clk 0:00:10]} 44. Kh2 {[%clk 0:00:01]}  Rxf1 {[%clk 0:00:10]} 45. Bd3 {[%clk 0:00:02]}  Rd1 {[%clk 0:00:09]} 46. Be2 {[%clk 0:00:02]}  Qc2 {[%clk 0:00:05]} 47. Ng5 {[%clk 0:00:01]}  Qxe2 {[%clk 0:00:04]} 48. Nf7+ {[%clk 0:00:01]}  Kg7 {[%clk 0:00:04]} 49. Ng5 {[%clk 0:00:00]}  Rd2 {[%clk 0:00:03]} 0-1


[Site "https://www.chess.com"]

[Event "Titled Tuesday Blitz May 23 Early 2023"]
[White "Ovezdurdyyeva, Jemal"]
[Black "Vestby-Ellingsen, Mads"]
[WhiteFideId "14001888"]
[BlackFideId "1520857"]
[WhiteElo "2043"]
[BlackElo "2244"]
[Result "0-1"]
[Round "03"]
[TimeControl "180+2"]
[Date "2023.05.23"]
[WhiteClock "0:01:02"]
[BlackClock "0:00:46"]

1. e4 {[%clk 0:03:00]}  e5 {[%clk 0:02:57]} 2. Nf3 {[%clk 0:03:00]}  Nc6 {[%clk 0:02:57]} 3. Bc4 {[%clk 0:02:56]}  Bc5 {[%clk 0:02:55]} 4. O-O {[%clk 0:02:57]}  Nf6 {[%clk 0:02:54]} 5. d3 {[%clk 0:02:55]}  d6 {[%clk 0:02:54]} 6. h3 {[%clk 0:02:56]}  h6 {[%clk 0:02:53]} 7. c3 {[%clk 0:02:56]}  Bb6 {[%clk 0:02:51]} 8. b4 {[%clk 0:02:54]}  g5 {[%clk 0:02:50]} 9. b5 {[%clk 0:02:43]}  Na5 {[%clk 0:02:43]} 10. Nbd2 {[%clk 0:02:34]}  g4 {[%clk 0:02:31]} 11. Nh2 {[%clk 0:02:32]}  gxh3 {[%clk 0:02:27]} 12. g3 {[%clk 0:02:32]}  h5 {[%clk 0:02:11]} 13. Ndf3 {[%clk 0:02:21]}  Nxc4 {[%clk 0:02:08]} 14. dxc4 {[%clk 0:02:19]}  Ng4 {[%clk 0:02:01]} 15. Bg5 {[%clk 0:02:14]}  f6 {[%clk 0:01:59]} 16. Bh4 {[%clk 0:02:13]}  Be6 {[%clk 0:01:54]} 17. Qd3 {[%clk 0:02:07]}  Qe7 {[%clk 0:01:53]} 18. a4 {[%clk 0:02:06]}  Qf7 {[%clk 0:01:46]} 19. Nd2 {[%clk 0:02:05]}  f5 {[%clk 0:01:42]} 20. exf5 {[%clk 0:01:57]}  Bxf5 {[%clk 0:01:39]} 21. Qf3 {[%clk 0:01:54]}  O-O {[%clk 0:01:30]} 22. Nxg4 {[%clk 0:01:46]}  hxg4 {[%clk 0:01:19]} 23. Qe2 {[%clk 0:01:45]}  Qg6 {[%clk 0:01:10]} 24. c5 {[%clk 0:01:13]}  Bd3 {[%clk 0:01:07]} 25. Qe3 {[%clk 0:01:06]}  Bxc5 {[%clk 0:01:05]} 26. Qg5 {[%clk 0:01:05]}  Qxg5 {[%clk 0:01:05]} 27. Bxg5 {[%clk 0:01:05]}  Bxf1 {[%clk 0:01:05]} 28. Rxf1 {[%clk 0:01:06]}  Rxf2 {[%clk 0:00:49]} 29. Rxf2 {[%clk 0:01:05]}  Rf8 {[%clk 0:00:50]} 30. Ne4 {[%clk 0:01:05]}  Bxf2+ {[%clk 0:00:47]} 31. Nxf2 {[%clk 0:01:05]}  h2+ {[%clk 0:00:46]} 32. Kg2 {[%clk 0:01:02]}  Rxf2+ {[%clk 0:00:46]} 0-1


[Site "https://www.chess.com"]

[Event "Titled Tuesday Blitz May 23 Early 2023"]
[White "Valle Maytin, Luis Enrique"]
[Black "Shevtchenko, Olesya"]
[WhiteFideId "3503666"]
[BlackFideId "24131890"]
[WhiteElo "2225"]
[BlackElo "2003"]
[Result "0-1"]
[Round "03"]
[TimeControl "180+2"]
[Date "2023.05.23"]
[WhiteClock "0:00:00"]
[BlackClock "0:00:35"]

1. d4 {[%clk 0:03:00]}  Nf6 {[%clk 0:02:59]} 2. Nf3 {[%clk 0:03:00]}  e6 {[%clk 0:03:00]} 3. e3 {[%clk 0:02:56]}  c5 {[%clk 0:02:59]} 4. Bd3 {[%clk 0:02:50]}  b6 {[%clk 0:02:59]} 5. O-O {[%clk 0:02:49]}  Bb7 {[%clk 0:03:00]} 6. Nbd2 {[%clk 0:02:49]}  Be7 {[%clk 0:02:59]} 7. b3 {[%clk 0:02:49]}  O-O {[%clk 0:02:59]} 8. Bb2 {[%clk 0:02:49]}  d6 {[%clk 0:02:59]} 9. c4 {[%clk 0:02:49]}  Nbd7 {[%clk 0:02:56]} 10. Qe2 {[%clk 0:02:48]}  Rc8 {[%clk 0:02:53]} 11. Rac1 {[%clk 0:02:44]}  Rc7 {[%clk 0:02:51]} 12. Bb1 {[%clk 0:02:42]}  Qa8 {[%clk 0:02:50]} 13. Qd3 {[%clk 0:02:31]}  Rd8 {[%clk 0:02:42]} 14. Rfd1 {[%clk 0:02:12]}  Nf8 {[%clk 0:02:40]} 15. dxc5 {[%clk 0:02:05]}  bxc5 {[%clk 0:02:36]} 16. e4 {[%clk 0:01:59]}  e5 {[%clk 0:02:34]} 17. Ne1 {[%clk 0:01:53]}  Ne6 {[%clk 0:02:34]} 18. f3 {[%clk 0:01:50]}  Nh5 {[%clk 0:02:22]} 19. Nf1 {[%clk 0:01:46]}  Nhf4 {[%clk 0:02:21]} 20. Qc2 {[%clk 0:01:42]}  Nd4 {[%clk 0:02:12]} 21. Bxd4 {[%clk 0:01:41]}  cxd4 {[%clk 0:02:13]} 22. Nd3 {[%clk 0:01:41]}  Bg5 {[%clk 0:02:10]} 23. Nxf4 {[%clk 0:01:36]}  Bxf4 {[%clk 0:02:11]} 24. Nd2 {[%clk 0:01:35]}  Be3+ {[%clk 0:02:08]} 25. Kh1 {[%clk 0:01:35]}  g6 {[%clk 0:01:51]} 26. Re1 {[%clk 0:01:33]}  d5 {[%clk 0:01:38]} 27. exd5 {[%clk 0:01:29]}  Bxd5 {[%clk 0:01:35]} 28. Rcd1 {[%clk 0:01:26]}  Be6 {[%clk 0:01:23]} 29. Qe4 {[%clk 0:01:23]}  Qxe4 {[%clk 0:01:21]} 30. Nxe4 {[%clk 0:01:14]}  Rcc8 {[%clk 0:01:13]} 31. Bd3 {[%clk 0:01:04]}  f5 {[%clk 0:01:13]} 32. Nf6+ {[%clk 0:00:59]}  Kg7 {[%clk 0:01:08]} 33. Nd5 {[%clk 0:00:59]}  Bxd5 {[%clk 0:01:05]} 34. cxd5 {[%clk 0:01:00]}  Rxd5 {[%clk 0:01:05]} 35. Bc4 {[%clk 0:00:55]}  Rdc5 {[%clk 0:01:02]} 36. g3 {[%clk 0:00:48]}  Kf6 {[%clk 0:00:59]} 37. f4 {[%clk 0:00:47]}  e4 {[%clk 0:00:58]} 38. Kg2 {[%clk 0:00:46]}  g5 {[%clk 0:00:48]} 39. fxg5+ {[%clk 0:00:45]}  Kxg5 {[%clk 0:00:49]} 40. Re2 {[%clk 0:00:45]}  Kf6 {[%clk 0:00:47]} 41. Rf1 {[%clk 0:00:36]}  Ke5 {[%clk 0:00:47]} 42. h3 {[%clk 0:00:35]}  Rxc4 {[%clk 0:00:46]} 43. bxc4 {[%clk 0:00:35]}  Rxc4 {[%clk 0:00:47]} 44. h4 {[%clk 0:00:32]}  Rc3 {[%clk 0:00:45]} 45. Rb1 {[%clk 0:00:29]}  Rc5 {[%clk 0:00:42]} 46. Rb7 {[%clk 0:00:27]}  f4 {[%clk 0:00:42]} 47. Re7+ {[%clk 0:00:23]}  Kf5 {[%clk 0:00:38]} 48. Rf7+ {[%clk 0:00:00]}  Ke6 {[%clk 0:00:35]} 0-1


[Site "https://www.chess.com"]

[Event "Titled Tuesday Blitz May 23 Early 2023"]
[White "surrenderPLS"]
[Black "Kovacsy, Barnabas"]
[BlackFideId "769290"]
[WhiteElo "2545"]
[BlackElo "2130"]
[Result "1-0"]
[Round "03"]
[TimeControl "180+2"]
[Date "2023.05.23"]
[WhiteClock "0:00:26"]
[BlackClock "0:00:00"]

1. e4 {[%clk 0:03:00]}  c5 {[%clk 0:02:58]} 2. Nf3 {[%clk 0:02:59]}  e6 {[%clk 0:02:55]} 3. d4 {[%clk 0:02:59]}  cxd4 {[%clk 0:02:56]} 4. Nxd4 {[%clk 0:03:00]}  Nc6 {[%clk 0:02:56]} 5. Nc3 {[%clk 0:02:59]}  Qc7 {[%clk 0:02:55]} 6. Be3 {[%clk 0:02:58]}  a6 {[%clk 0:02:54]} 7. g4 {[%clk 0:02:58]}  b5 {[%clk 0:02:48]} 8. Nxc6 {[%clk 0:02:58]}  dxc6 {[%clk 0:02:46]} 9. Qf3 {[%clk 0:02:57]}  Bb4 {[%clk 0:02:33]} 10. a3 {[%clk 0:02:53]}  Bxc3+ {[%clk 0:02:31]} 11. bxc3 {[%clk 0:02:54]}  Ne7 {[%clk 0:02:24]} 12. Bc5 {[%clk 0:02:51]}  O-O {[%clk 0:02:14]} 13. h4 {[%clk 0:02:51]}  Re8 {[%clk 0:02:09]} 14. h5 {[%clk 0:02:51]}  f5 {[%clk 0:01:45]} 15. Rg1 {[%clk 0:02:17]}  f4 {[%clk 0:01:24]} 16. a4 {[%clk 0:01:55]}  Bb7 {[%clk 0:01:04]} 17. Bd3 {[%clk 0:01:34]}  e5 {[%clk 0:01:02]} 18. Kf1 {[%clk 0:01:33]}  Nc8 {[%clk 0:00:54]} 19. g5 {[%clk 0:01:26]}  Nd6 {[%clk 0:00:51]} 20. Rd1 {[%clk 0:01:13]}  Rad8 {[%clk 0:00:40]} 21. g6 {[%clk 0:01:07]}  h6 {[%clk 0:00:37]} 22. Kg2 {[%clk 0:01:07]}  Bc8 {[%clk 0:00:30]} 23. Kh2 {[%clk 0:01:04]}  Nb7 {[%clk 0:00:29]} 24. Ba3 {[%clk 0:00:58]}  Qb6 {[%clk 0:00:23]} 25. axb5 {[%clk 0:00:54]}  axb5 {[%clk 0:00:23]} 26. Rb1 {[%clk 0:00:52]}  Nc5 {[%clk 0:00:20]} 27. c4 {[%clk 0:00:36]}  Nxd3 {[%clk 0:00:20]} 28. cxd3 {[%clk 0:00:37]}  Qa5 {[%clk 0:00:19]} 29. Bb4 {[%clk 0:00:35]}  Qa2 {[%clk 0:00:19]} 30. cxb5 {[%clk 0:00:34]}  cxb5 {[%clk 0:00:18]} 31. Rgd1 {[%clk 0:00:30]}  Be6 {[%clk 0:00:17]} 32. Bc3 {[%clk 0:00:25]}  Bb3 {[%clk 0:00:08]} 33. Rdc1 {[%clk 0:00:25]}  Bc2 {[%clk 0:00:04]} 34. Rb2 {[%clk 0:00:25]}  Rxd3 {[%clk 0:00:01]} 35. Qxd3 {[%clk 0:00:25]}  Qxb2 {[%clk 0:00:02]} 36. Qd5+ {[%clk 0:00:26]}  Kh8 {[%clk 0:00:00]} 37. Bxb2 {[%clk 0:00:26]} 1-0


[Site "https://www.chess.com"]

[Event "Titled Tuesday Blitz May 23 Early 2023"]
[White "mohsengabr2002"]
[Black "Ferenc83"]
[WhiteElo "2293"]
[BlackElo "2543"]
[Result "0-1"]
[Round "03"]
[TimeControl "180+2"]
[Date "2023.05.23"]
[WhiteClock "0:00:11"]
[BlackClock "0:00:07"]

1. e4 {[%clk 0:02:50]}  c6 {[%clk 0:02:57]} 2. g3 {[%clk 0:02:49]}  d5 {[%clk 0:02:56]} 3. Nc3 {[%clk 0:02:48]}  dxe4 {[%clk 0:02:54]} 4. Nxe4 {[%clk 0:02:46]}  Nf6 {[%clk 0:02:53]} 5. Qe2 {[%clk 0:02:45]}  Nxe4 {[%clk 0:02:50]} 6. Qxe4 {[%clk 0:02:43]}  Qd5 {[%clk 0:02:51]} 7. Bg2 {[%clk 0:02:39]}  Qxe4+ {[%clk 0:02:49]} 8. Bxe4 {[%clk 0:02:39]}  Nd7 {[%clk 0:02:49]} 9. Bg2 {[%clk 0:02:36]}  Nf6 {[%clk 0:02:46]} 10. Nf3 {[%clk 0:02:36]}  Bf5 {[%clk 0:02:46]} 11. d3 {[%clk 0:02:36]}  e6 {[%clk 0:02:45]} 12. Be3 {[%clk 0:02:33]}  Bb4+ {[%clk 0:02:43]} 13. Ke2 {[%clk 0:02:32]}  h6 {[%clk 0:02:39]} 14. Nd4 {[%clk 0:02:31]}  Bg6 {[%clk 0:02:34]} 15. Nxc6 {[%clk 0:02:30]}  bxc6 {[%clk 0:02:31]} 16. Bxc6+ {[%clk 0:02:30]}  Ke7 {[%clk 0:02:32]} 17. Bxa8 {[%clk 0:02:28]}  Rxa8 {[%clk 0:02:32]} 18. h3 {[%clk 0:02:24]}  e5 {[%clk 0:02:29]} 19. a3 {[%clk 0:02:20]}  Bd6 {[%clk 0:02:27]} 20. c4 {[%clk 0:02:20]}  a5 {[%clk 0:02:24]} 21. c5 {[%clk 0:02:15]}  Bc7 {[%clk 0:02:23]} 22. b4 {[%clk 0:02:15]}  Nd5 {[%clk 0:02:14]} 23. Bd2 {[%clk 0:02:13]}  Rb8 {[%clk 0:02:03]} 24. Rhb1 {[%clk 0:02:04]}  e4 {[%clk 0:02:03]} 25. dxe4 {[%clk 0:02:04]}  Bxe4 {[%clk 0:02:03]} 26. Rb2 {[%clk 0:02:04]}  Be5 {[%clk 0:02:01]} 27. Raa2 {[%clk 0:02:00]}  Bxb2 {[%clk 0:01:59]} 28. Rxb2 {[%clk 0:02:01]}  axb4 {[%clk 0:01:59]} 29. axb4 {[%clk 0:02:01]}  Rb5 {[%clk 0:01:58]} 30. f3 {[%clk 0:01:59]}  Bf5 {[%clk 0:01:57]} 31. g4 {[%clk 0:01:59]}  Bg6 {[%clk 0:01:55]} 32. h4 {[%clk 0:02:00]}  Kd7 {[%clk 0:01:55]} 33. h5 {[%clk 0:01:57]}  Bh7 {[%clk 0:01:54]} 34. Ra2 {[%clk 0:01:56]}  Kc6 {[%clk 0:01:53]} 35. Ra7 {[%clk 0:01:51]}  Nc7 {[%clk 0:01:38]} 36. Bf4 {[%clk 0:01:46]}  Rb7 {[%clk 0:01:34]} 37. Ra4 {[%clk 0:01:24]}  Bc2 {[%clk 0:01:26]} 38. Ra2 {[%clk 0:01:21]}  Bb3 {[%clk 0:01:25]} 39. Rd2 {[%clk 0:01:19]}  Nd5 {[%clk 0:01:23]} 40. Be5 {[%clk 0:01:13]}  f6 {[%clk 0:01:22]} 41. Bd6 {[%clk 0:01:12]}  Rxb4 {[%clk 0:01:22]} 42. Bf8 {[%clk 0:01:12]}  Rb7 {[%clk 0:01:20]} 43. Kf2 {[%clk 0:01:09]}  Rf7 {[%clk 0:01:15]} 44. Bd6 {[%clk 0:01:08]}  Bc4 {[%clk 0:01:12]} 45. Kg3 {[%clk 0:01:08]}  f5 {[%clk 0:01:11]} 46. Rc2 {[%clk 0:01:01]}  Bb5 {[%clk 0:01:08]} 47. Rc1 {[%clk 0:00:51]}  fxg4 {[%clk 0:01:03]} 48. fxg4 {[%clk 0:00:51]}  Nf6 {[%clk 0:00:59]} 49. Re1 {[%clk 0:00:50]}  Bd3 {[%clk 0:00:52]} 50. Re6 {[%clk 0:00:49]}  Ne4+ {[%clk 0:00:45]} 51. Kh4 {[%clk 0:00:46]}  Ng5 {[%clk 0:00:43]} 52. Re3 {[%clk 0:00:43]}  Bc4 {[%clk 0:00:39]} 53. Re7 {[%clk 0:00:41]}  Rf3 {[%clk 0:00:33]} 54. Rc7+ {[%clk 0:00:35]}  Kd5 {[%clk 0:00:30]} 55. Bg3 {[%clk 0:00:35]}  Ne4 {[%clk 0:00:27]} 56. Bd6 {[%clk 0:00:32]}  Rf1 {[%clk 0:00:21]} 57. Kh3 {[%clk 0:00:30]}  Rf3+ {[%clk 0:00:18]} 58. Kh4 {[%clk 0:00:29]}  Bf1 {[%clk 0:00:17]} 59. g5 {[%clk 0:00:24]}  hxg5+ {[%clk 0:00:15]} 60. Kg4 {[%clk 0:00:24]}  Be2 {[%clk 0:00:16]} 61. h6 {[%clk 0:00:13]}  gxh6 {[%clk 0:00:14]} 62. Kh5 {[%clk 0:00:13]}  Rf7+ {[%clk 0:00:12]} 63. Kxh6 {[%clk 0:00:13]}  Rxc7 {[%clk 0:00:09]} 64. Bxc7 {[%clk 0:00:13]}  g4 {[%clk 0:00:09]} 65. Kh5 {[%clk 0:00:12]}  g3+ {[%clk 0:00:09]} 66. Kh4 {[%clk 0:00:12]}  g2 {[%clk 0:00:09]} 67. Bh2 {[%clk 0:00:13]}  Bf1 {[%clk 0:00:09]} 68. Kg4 {[%clk 0:00:13]}  Nxc5 {[%clk 0:00:09]} 69. Kf3 {[%clk 0:00:13]}  Ne4 {[%clk 0:00:09]} 70. Ke3 {[%clk 0:00:12]}  Nf6 {[%clk 0:00:08]} 71. Kf4 {[%clk 0:00:12]}  Kd4 {[%clk 0:00:07]} 72. Kf3 {[%clk 0:00:12]}  Kd3 {[%clk 0:00:07]} 73. Kf2 {[%clk 0:00:13]}  Ng4+ {[%clk 0:00:07]} 74. Kg1 {[%clk 0:00:12]}  Nxh2 {[%clk 0:00:07]} 75. Kxh2 {[%clk 0:00:13]}  Ke2 {[%clk 0:00:07]} 76. Kg1 {[%clk 0:00:14]}  Ke1 {[%clk 0:00:07]} 77. Kh2 {[%clk 0:00:14]}  Kf2 {[%clk 0:00:08]} 78. Kh3 {[%clk 0:00:15]}  g1=Q+ {[%clk 0:00:07]} 79. Kh4 {[%clk 0:00:11]}  Kf3 {[%clk 0:00:07]} 0-1


[Site "https://www.chess.com"]

[Event "Titled Tuesday Blitz May 23 Early 2023"]
[White "Estremera Panos, Sergio"]
[Black "Janaszak, Dawid"]
[WhiteFideId "2200864"]
[BlackFideId "1119206"]
[WhiteElo "2253"]
[BlackElo "2220"]
[Result "0-1"]
[Round "03"]
[TimeControl "180+2"]
[Date "2023.05.23"]
[WhiteClock "0:00:59"]
[BlackClock "0:01:41"]

1. d4 {[%clk 0:03:00]}  d5 {[%clk 0:02:59]} 2. c4 {[%clk 0:03:01]}  e6 {[%clk 0:02:59]} 3. Nc3 {[%clk 0:03:01]}  c5 {[%clk 0:02:59]} 4. Nf3 {[%clk 0:02:58]}  Nc6 {[%clk 0:02:55]} 5. cxd5 {[%clk 0:02:53]}  exd5 {[%clk 0:02:56]} 6. dxc5 {[%clk 0:02:53]}  d4 {[%clk 0:02:56]} 7. Na4 {[%clk 0:02:52]}  b5 {[%clk 0:02:56]} 8. cxb6 {[%clk 0:02:48]}  axb6 {[%clk 0:02:49]} 9. b3 {[%clk 0:02:47]}  b5 {[%clk 0:02:40]} 10. Nb2 {[%clk 0:02:42]}  Bb4+ {[%clk 0:02:39]} 11. Bd2 {[%clk 0:02:41]}  Bc3 {[%clk 0:02:38]} 12. Qc2 {[%clk 0:02:27]}  b4 {[%clk 0:02:34]} 13. e3 {[%clk 0:02:13]}  Nge7 {[%clk 0:02:28]} 14. Bc4 {[%clk 0:02:05]}  O-O {[%clk 0:02:17]} 15. O-O {[%clk 0:02:05]}  Nf5 {[%clk 0:01:58]} 16. Rfd1 {[%clk 0:01:37]}  Qf6 {[%clk 0:01:52]} 17. Bd5 {[%clk 0:01:17]}  Bb7 {[%clk 0:01:52]} 18. Bxc6 {[%clk 0:01:16]}  Bxc6 {[%clk 0:01:48]} 19. exd4 {[%clk 0:01:13]}  Bxf3 {[%clk 0:01:47]} 20. gxf3 {[%clk 0:01:01]}  Nxd4 {[%clk 0:01:42]} 21. Bxc3 {[%clk 0:00:59]}  Qg5+ {[%clk 0:01:41]} 0-1


[Site "https://www.chess.com"]

[Event "Titled Tuesday Blitz May 23 Early 2023"]
[White "Antonio, Jorge Carlos"]
[Black "Richter, Paul"]
[WhiteFideId "113190"]
[BlackFideId "2046350"]
[WhiteElo "2247"]
[BlackElo "2529"]
[Result "0-1"]
[Round "03"]
[TimeControl "180+2"]
[Date "2023.05.23"]
[WhiteClock "0:00:00"]
[BlackClock "0:00:20"]

1. d4 {[%clk 0:02:57]}  Nf6 {[%clk 0:02:59]} 2. Nf3 {[%clk 0:02:56]}  g6 {[%clk 0:02:59]} 3. c4 {[%clk 0:02:55]}  Bg7 {[%clk 0:02:59]} 4. Nc3 {[%clk 0:02:55]}  O-O {[%clk 0:02:59]} 5. e4 {[%clk 0:02:55]}  d6 {[%clk 0:03:00]} 6. Be2 {[%clk 0:02:56]}  Na6 {[%clk 0:03:00]} 7. O-O {[%clk 0:02:55]}  e5 {[%clk 0:03:00]} 8. dxe5 {[%clk 0:02:52]}  dxe5 {[%clk 0:03:01]} 9. Qxd8 {[%clk 0:02:52]}  Rxd8 {[%clk 0:03:02]} 10. Bg5 {[%clk 0:02:51]}  Re8 {[%clk 0:03:01]} 11. a3 {[%clk 0:02:48]}  c6 {[%clk 0:02:52]} 12. b4 {[%clk 0:02:46]}  Nc7 {[%clk 0:02:31]} 13. c5 {[%clk 0:02:43]}  Ne6 {[%clk 0:02:29]} 14. Bxf6 {[%clk 0:02:41]}  Bxf6 {[%clk 0:02:30]} 15. Nd2 {[%clk 0:02:27]}  Nd4 {[%clk 0:02:24]} 16. Nc4 {[%clk 0:02:26]}  Be6 {[%clk 0:02:15]} 17. Nd6 {[%clk 0:02:25]}  Re7 {[%clk 0:02:16]} 18. Bc4 {[%clk 0:02:15]}  Bc8 {[%clk 0:02:10]} 19. f4 {[%clk 0:02:05]}  Be6 {[%clk 0:01:08]} 20. Bxe6 {[%clk 0:01:48]}  fxe6 {[%clk 0:00:45]} 21. Rad1 {[%clk 0:01:16]}  exf4 {[%clk 0:00:41]} 22. Rxf4 {[%clk 0:01:09]}  Be5 {[%clk 0:00:41]} 23. Rff1 {[%clk 0:01:04]}  a5 {[%clk 0:00:37]} 24. Nc4 {[%clk 0:01:01]}  Bg7 {[%clk 0:00:37]} 25. Nxa5 {[%clk 0:00:54]}  Nc2 {[%clk 0:00:36]} 26. Nb1 {[%clk 0:00:43]}  Ne3 {[%clk 0:00:36]} 27. Kf2 {[%clk 0:00:36]}  Nxf1 {[%clk 0:00:33]} 28. Kxf1 {[%clk 0:00:34]}  Be5 {[%clk 0:00:30]} 29. g3 {[%clk 0:00:33]}  Rf7+ {[%clk 0:00:27]} 30. Ke2 {[%clk 0:00:33]}  Raf8 {[%clk 0:00:28]} 31. Nc4 {[%clk 0:00:27]}  Rf2+ {[%clk 0:00:27]} 32. Ke1 {[%clk 0:00:17]}  Rf1+ {[%clk 0:00:26]} 33. Ke2 {[%clk 0:00:17]}  R8f2+ {[%clk 0:00:25]} 34. Ke3 {[%clk 0:00:14]}  Rxd1 {[%clk 0:00:24]} 35. Kxf2 {[%clk 0:00:14]}  Bd4+ {[%clk 0:00:24]} 36. Ke2 {[%clk 0:00:09]}  Rxb1 {[%clk 0:00:25]} 37. Na5 {[%clk 0:00:02]}  b6 {[%clk 0:00:20]} 38. Nxc6 {[%clk 0:00:02]}  bxc5 {[%clk 0:00:20]} 39. bxc5 {[%clk 0:00:00]}  Bxc5 {[%clk 0:00:20]} 0-1


[Site "https://www.chess.com"]

[Event "Titled Tuesday Blitz May 23 Early 2023"]
[White "tetrix83"]
[Black "Antonova, Nadezhda"]
[BlackFideId "14700182"]
[WhiteElo "2522"]
[BlackElo "1799"]
[Result "1-0"]
[Round "03"]
[TimeControl "180+2"]
[Date "2023.05.23"]
[WhiteClock "0:00:25"]
[BlackClock "0:00:00"]

1. e4 {[%clk 0:03:00]}  c5 {[%clk 0:02:58]} 2. Nf3 {[%clk 0:03:00]}  d6 {[%clk 0:02:58]} 3. Bc4 {[%clk 0:02:59]}  e6 {[%clk 0:02:57]} 4. O-O {[%clk 0:02:59]}  Nf6 {[%clk 0:02:57]} 5. Re1 {[%clk 0:02:52]}  Be7 {[%clk 0:02:56]} 6. c3 {[%clk 0:02:43]}  O-O {[%clk 0:02:53]} 7. Bb3 {[%clk 0:02:41]}  Nc6 {[%clk 0:02:37]} 8. d4 {[%clk 0:02:38]}  cxd4 {[%clk 0:02:25]} 9. cxd4 {[%clk 0:02:39]}  d5 {[%clk 0:02:25]} 10. e5 {[%clk 0:02:18]}  Ne4 {[%clk 0:02:25]} 11. Nc3 {[%clk 0:02:11]}  f5 {[%clk 0:02:07]} 12. exf6 {[%clk 0:02:04]}  Nxf6 {[%clk 0:02:07]} 13. Bg5 {[%clk 0:02:01]}  Bd7 {[%clk 0:02:00]} 14. Ne5 {[%clk 0:01:44]}  Nxe5 {[%clk 0:01:52]} 15. dxe5 {[%clk 0:01:38]}  Ne8 {[%clk 0:01:47]} 16. Be3 {[%clk 0:01:07]}  Bc6 {[%clk 0:01:27]} 17. Ne2 {[%clk 0:00:59]}  Bg5 {[%clk 0:01:15]} 18. f4 {[%clk 0:00:57]}  Bh6 {[%clk 0:01:08]} 19. Qd2 {[%clk 0:00:54]}  Qh4 {[%clk 0:00:55]} 20. g3 {[%clk 0:00:51]}  Qg4 {[%clk 0:00:44]} 21. Nd4 {[%clk 0:00:42]}  g6 {[%clk 0:00:34]} 22. Bd1 {[%clk 0:00:40]}  Qh3 {[%clk 0:00:32]} 23. Bf3 {[%clk 0:00:38]}  Ng7 {[%clk 0:00:29]} 24. Rac1 {[%clk 0:00:37]}  Rac8 {[%clk 0:00:28]} 25. Qe2 {[%clk 0:00:37]}  Nf5 {[%clk 0:00:06]} 26. Bg4 {[%clk 0:00:28]}  Nxg3 {[%clk 0:00:05]} 27. Bxh3 {[%clk 0:00:27]}  Nxe2+ {[%clk 0:00:05]} 28. Nxe2 {[%clk 0:00:26]}  Rf7 {[%clk 0:00:00]} 29. Bxe6 {[%clk 0:00:25]} 1-0


[Site "https://www.chess.com"]